bitfinex-derivatives/quotes_BTCF0:USTF0_20251215
["timestamp","ask_amount","ask_price","bid_price","bid_amount"]
[1765822886533,1.5330571,85786.0,85784.0,0.14665388]
[1765822886534,0.60944,85785.0,85784.0,0.14665388]
[1765822886738,0.60944,85785.0,85778.0,0.00233161]
[1765822886739,0.618098,85779.0,85778.0,0.00233161]
[1765822886942,1.168898,85779.0,85778.0,0.00233161]
[1765822887138,1.164898,85779.0,85778.0,0.00233161]
[1765822887340,1.164898,85779.0,85778.0,0.02062126]
[1765822887846,1.896898,85779.0,85778.0,0.02062126]
[1765822888034,1.896898,85779.0,85778.0,0.00533161]
[1765822888734,1.896898,85779.0,85778.0,0.00433161]
[1765822889040,0.59544,85769.0,85768.0,0.01838951]
[1765822889242,0.59544,85767.0,85766.0,0.14665388]
[1765822889545,0.59544,85761.0,85760.0,0.14665388]
[1765822889843,1.5091005,85761.0,85760.0,0.01775044]
[1765822890140,1.5091005,85761.0,85760.0,0.14605545]
[1765822890141,1.50922987,85761.0,85760.0,0.14605545]
[1765822890344,0.59544,85759.0,85758.0,0.14605545]
[1765822890545,1.15624,85759.0,85758.0,0.14605545]
[1765822890746,1.15624,85759.0,85758.0,0.01787807]
[1765822890946,0.59544,85757.0,85756.0,0.14605545]
[1765822891142,0.78544,85757.0,85756.0,0.16393897]
[1765822891349,0.78544,85757.0,85756.0,0.83585897]
[1765822891647,0.78544,85757.0,85756.0,0.68980352]
[1765822892439,0.78544,85757.0,85756.0,0.83571848]
[1765822892741,0.78544,85757.0,85756.0,0.68980352]
[1765822892742,0.19,85757.0,85756.0,0.68980352]
[1765822893340,0.19,85757.0,85756.0,0.69080352]
[1765822895037,0.48772,85757.0,85756.0,0.69080352]
[1765822895235,0.48772,85757.0,85756.0,0.83665964]
[1765822895440,0.19,85757.0,85756.0,0.83665964]
[1765822895746,0.19,85757.0,85756.0,0.69080352]
[1765822896348,0.19,85757.0,85756.0,0.83664976]
[1765822897343,0.48772,85757.0,85756.0,0.83664976]
[1765822897536,0.78544,85757.0,85756.0,0.01888352]
[1765822898944,0.78544,85757.0,85756.0,0.70756352]
[1765822899344,0.78544,85757.0,85756.0,0.01888352]
[1765822900345,0.78544,85757.0,85756.0,0.70756352]
[1765822900544,0.797101,85757.0,85756.0,0.70756352]
[1765822900743,0.499381,85757.0,85756.0,0.70756352]
[1765822900948,0.48772,85757.0,85756.0,0.70756352]
[1765822901247,0.78544,85757.0,85756.0,0.70756352]
[1765822901952,0.48772,85757.0,85756.0,0.70756352]
[1765822902445,0.78544,85757.0,85756.0,0.70756352]
[1765822902836,0.19,85757.0,85756.0,0.70756352]
[1765822903155,0.00012937,85761.0,85760.0,0.9024206]
[1765822903342,0.3608,85771.0,85768.0,0.9024195]
[1765822903542,0.18017484,85769.0,85768.0,0.9024195]
[1765822904652,0.18317484,85769.0,85768.0,0.9024195]
[1765822905243,0.89066484,85769.0,85768.0,0.89076]
[1765822906152,0.18317484,85769.0,85768.0,0.89076]
[1765822906342,0.18317484,85769.0,85768.0,1.03682073]
[1765822906542,0.54120484,85769.0,85768.0,1.03682073]
[1765822907248,0.89166484,85769.0,85768.0,1.03682073]
[1765822907446,0.70749,85766.0,85765.0,0.49075073]
[1765822907641,0.88749,85766.0,85765.0,0.49075073]
[1765822907842,0.71915,85765.0,85764.0,0.14606073]
[1765822908043,0.90915,85765.0,85764.0,0.14606073]
[1765822908240,0.90915,85765.0,85763.0,0.14606073]
[1765822908453,0.70749,85764.0,85763.0,0.14606073]
[1765822908651,0.70749,85764.0,85758.0,0.14606073]
[1765822908652,0.70749,85759.0,85758.0,0.14606073]
[1765822908853,1.2499508,85759.0,85758.0,0.14606073]
[1765822910250,1.2509508,85759.0,85758.0,0.14606073]
[1765822910646,0.70749,85757.0,85756.0,0.01788352]
[1765822910848,0.7191516,85753.0,85752.0,0.20208]
[1765822911046,0.9091516,85753.0,85752.0,0.20208]
[1765822911243,0.9091516,85753.0,85752.0,0.01794796]
[1765822911443,0.9091516,85753.0,85752.0,0.89076]
[1765822911642,0.9091516,85753.0,85752.0,0.54677]
[1765822911856,0.9091516,85753.0,85752.0,0.91111657]
[1765822913346,0.9091516,85753.0,85752.0,0.02035657]
[1765822914061,0.19,85753.0,85752.0,0.91111657]
[1765822915756,0.19,85753.0,85752.0,0.90911657]
[1765822915757,0.89749,85753.0,85752.0,0.90911657]
[1765822916162,0.89849,85753.0,85752.0,0.90911657]
[1765822916556,0.89849,85753.0,85752.0,0.01835657]
[1765822916763,0.70749,85751.0,85748.0,0.00014242]
[1765822916953,1.22829,85751.0,85748.0,0.00014242]
[1765822917356,1.22829,85751.0,85750.0,0.01832118]
[1765822917560,1.22829,85751.0,85736.0,0.04123418]
[1765822917561,0.7191538,85737.0,85736.0,0.02957038]
[1765822917758,0.70749,85733.0,85732.0,0.69870637]
[1765822918064,0.90749,85733.0,85732.0,0.72839409]
[1765822918264,0.3686932,85742.0,85741.0,0.68868]
[1765822918466,0.9091532,85742.0,85741.0,0.68868]
[1765822919060,0.89749,85742.0,85741.0,0.34469]
[1765822919366,0.70749,85735.0,85734.0,0.89076]
[1765822919552,0.87749,85735.0,85734.0,0.89076]
[1765822920961,0.17,85735.0,85734.0,0.89076]
[1765822921358,0.3608,85736.0,85735.0,0.700344]
[1765822921652,0.3608,85744.0,85743.0,0.9024229]
[1765822921851,0.5308,85744.0,85743.0,0.9024229]
[1765822922458,0.17,85744.0,85743.0,0.9024229]
[1765822922757,4.95e-06,85745.0,85744.0,0.67137]
[1765822922962,0.09000495,85745.0,85744.0,0.67137]
[1765822923161,0.3116609,85758.0,85750.0,0.67137]
[1765822923460,0.20011985,85751.0,85750.0,0.683032]
[1765822923667,0.20011985,85751.0,85750.0,1.043832]
[1765822924166,0.20111985,85751.0,85750.0,1.043832]
[1765822924368,0.00017495,85759.0,85750.0,1.043832]
[1765822924369,0.00017495,85759.0,85758.0,0.6830309]
[1765822924664,0.17017495,85759.0,85758.0,0.6830309]
[1765822925262,0.17017495,85759.0,85758.0,1.0438309]
[1765822925953,0.17417495,85759.0,85758.0,1.0438309]
[1765822926360,0.1537868,85759.0,85758.0,1.0438309]
[1765822926567,0.3608,85771.0,85770.0,0.8029693]
[1765822926756,1.06571,85782.0,85781.0,0.6830278]
[1765822926960,1.23571,85782.0,85781.0,0.6830278]
[1765822927162,1.23571,85782.0,85781.0,0.33977]
[1765822927464,1.23571,85782.0,85781.0,0.67137]
[1765822927465,0.5308,85782.0,85781.0,0.67137]
[1765822927762,0.00017495,85790.0,85789.0,0.6830267]
[1765822927967,0.00017495,85790.0,85789.0,0.77695934]
[1765822928266,0.04017495,85790.0,85789.0,0.77695934]
[1765822928568,0.00017495,85790.0,85789.0,0.77695934]
[1765822928770,0.16017495,85790.0,85789.0,0.77695934]
[1765822929067,0.50964495,85790.0,85789.0,0.6830267]
[1765822929272,0.86508495,85790.0,85789.0,0.67137]
[1765822929571,0.86708495,85790.0,85789.0,0.67137]
[1765822930161,0.70491,85784.0,85783.0,0.33977]
[1765822930462,0.70491,85784.0,85775.0,0.3608]
[1765822930463,0.70491,85780.0,85779.0,0.683028]
[1765822930660,0.87491,85780.0,85779.0,0.683028]
[1765822931170,0.87491,85780.0,85779.0,0.67137]
[1765822931566,0.70491,85774.0,85773.0,0.33994495]
[1765822931771,1.26571,85774.0,85773.0,0.67154495]
[1765822931969,0.91027,85774.0,85773.0,0.67154495]
[1765822932270,0.2,85774.0,85773.0,0.67154495]
[1765822932964,0.003,85780.0,85779.0,0.683028]
[1765822933166,0.163,85780.0,85779.0,0.683028]
[1765822933366,0.162,85780.0,85779.0,0.683028]
[1765822933558,0.51147,85780.0,85779.0,0.683028]
[1765822933762,0.50947,85780.0,85779.0,0.683028]
[1765822934061,0.70491,85777.0,85776.0,0.0116584]
[1765822934262,1.26571,85777.0,85776.0,0.0116584]
[1765822934969,1.26571,85777.0,85776.0,0.3514284]
[1765822935170,1.26571,85777.0,85776.0,0.6830284]
[1765822935763,1.26771,85777.0,85776.0,0.6830284]
[1765822936370,0.5628,85777.0,85776.0,0.6830284]
[1765822936569,0.5648,85777.0,85776.0,0.6830284]
[1765822937065,0.194,85777.0,85776.0,0.6830284]
[1765822937269,0.023,85777.0,85776.0,0.6830284]
[1765822937467,0.155,85777.0,85776.0,1.0438284]
[1765822937770,0.00017495,85790.0,85789.0,0.6830267]
[1765822937970,0.19017495,85790.0,85789.0,0.6830267]
[1765822939366,0.00017495,85790.0,85789.0,0.6830267]
[1765822939572,1.0773636,85812.0,85811.0,0.67137]
[1765822939764,1.27854636,85812.0,85811.0,0.67137]
[1765822939964,0.91145276,85812.0,85811.0,0.6830237]
[1765822940167,0.56198276,85812.0,85811.0,0.6830237]
[1765822940562,0.56198276,85812.0,85811.0,0.37036275]
[1765822940563,1.26689276,85812.0,85811.0,0.37036275]
[1765822940762,1.26689276,85812.0,85811.0,0.70196275]
[1765822941168,1.27089276,85812.0,85811.0,0.70196275]
[1765822941975,1.27389276,85812.0,85811.0,0.70196275]
[1765822942875,1.27289276,85812.0,85811.0,0.70196275]
[1765822943176,1.26889276,85812.0,85811.0,0.70196275]
[1765822943366,1.27089276,85812.0,85811.0,0.70196275]
[1765822943768,1.27089276,85812.0,85811.0,0.69030905]
[1765822944077,1.27089276,85812.0,85811.0,0.01893905]
[1765822944274,1.27089276,85812.0,85803.0,0.00017485]
[1765822944275,0.7165647,85804.0,85803.0,0.00017485]
[1765822944468,1.28854746,85804.0,85803.0,0.00017485]
[1765822944779,1.28854746,85804.0,85803.0,0.01919386]
[1765822945478,1.28954746,85804.0,85803.0,0.01919386]
[1765822945972,1.28954746,85804.0,85780.0,0.09388655]
[1765822945973,0.70491,85781.0,85780.0,0.09388655]
[1765822946173,1.60651,85781.0,85780.0,0.09388655]
[1765822946472,0.70491,85778.0,85777.0,8.006e-05]
[1765822946674,0.89491,85778.0,85777.0,6e-08]
[1765822946969,0.89491,85778.0,85769.0,4.91e-06]
[1765822946970,0.9322693,85770.0,85769.0,4.91e-06]
[1765822947171,0.70491,85754.0,85740.0,0.37430912]
[1765822947374,1.09284,85758.0,85757.0,0.67137]
[1765822947675,0.18,85758.0,85757.0,0.67137]
[1765822947875,0.88501608,85758.0,85757.0,0.67137]
[1765822948179,0.18010608,85758.0,85757.0,0.67137]
[1765822949376,0.18010608,85758.0,85757.0,0.67537]
[1765822950281,0.18010608,85758.0,85757.0,0.692031]
[1765822951785,0.18010608,85758.0,85757.0,0.690031]
[1765822951971,0.88102608,85758.0,85757.0,0.690031]
[1765822952684,0.00017485,85766.0,85757.0,0.690031]
[1765822952685,0.00017485,85766.0,85765.0,0.70335]
[1765822952874,0.00017485,85766.0,85765.0,1.06415]
[1765822953273,0.3608,85780.0,85779.0,0.703348]
[1765822953472,0.5408,85780.0,85779.0,0.703348]
[1765822955574,0.5438,85780.0,85779.0,0.703348]
[1765822955880,0.003,85780.0,85779.0,0.703348]
[1765822956078,0.00017485,85788.0,85787.0,0.703347]
[1765822956383,0.18017485,85788.0,85787.0,0.703347]
[1765822958984,0.18117485,85788.0,85787.0,0.703347]
[1765822963389,0.17117485,85788.0,85787.0,0.703347]
[1765822963887,0.20017485,85788.0,85787.0,0.703347]
[1765822964083,0.08117485,85788.0,85787.0,0.703347]
[1765822964283,0.00117485,85788.0,85787.0,0.703347]
[1765822964490,0.06117485,85788.0,85787.0,0.703347]
[1765822964681,0.19017485,85788.0,85787.0,0.703347]
[1765822964990,0.20017485,85788.0,85787.0,0.703347]
[1765822965191,0.19017485,85788.0,85787.0,0.703347]
[1765822965489,0.19017485,85788.0,85787.0,0.704347]
[1765822965783,0.00017485,85788.0,85787.0,0.703347]
[1765822965989,0.20017485,85788.0,85787.0,0.704347]
[1765822966174,0.00017485,85788.0,85787.0,0.704347]
[1765822966379,0.19017485,85788.0,85787.0,0.704347]
[1765822966782,0.16017485,85788.0,85787.0,0.704347]
[1765822967483,1.43358485,85788.0,85787.0,0.345707]
[1765822967691,1.43358485,85788.0,85787.0,0.001]
[1765822968394,0.69961,85778.0,85777.0,0.0116583]
[1765822968593,1.23041,85778.0,85777.0,0.0116583]
[1765822969094,0.711269,85772.0,85771.0,0.01183395]
[1765822969391,0.86961,85772.0,85771.0,0.70352395]
[1765822969579,0.7216,85778.0,85777.0,0.7033483]
[1765822969784,0.9026,85778.0,85777.0,0.7033483]
[1765822969998,0.5418,85778.0,85777.0,0.7033483]
[1765822970583,1.24141,85778.0,85777.0,0.7033483]
[1765822971087,0.5438,85778.0,85777.0,0.7033483]
[1765822971389,0.182,85778.0,85777.0,0.7033483]
[1765822971698,0.18,85778.0,85777.0,0.7033483]
[1765822971886,0.181,85778.0,85777.0,0.7033483]
[1765822972089,0.182,85778.0,85777.0,0.7033483]
[1765822972284,0.002,85778.0,85777.0,0.7033483]
[1765822972604,0.00017485,85788.0,85777.0,0.7033483]
[1765822972605,0.00017485,85788.0,85787.0,0.703347]
[1765822973991,0.00017485,85788.0,85787.0,0.704347]
[1765822974178,0.86978485,85788.0,85787.0,0.704347]
[1765822974386,0.00017485,85788.0,85787.0,0.704347]
[1765822974786,0.00017485,85788.0,85787.0,0.706347]
[1765822975193,0.00017485,85788.0,85787.0,0.705347]
[1765822975696,0.00017485,85788.0,85787.0,0.704347]
[1765822975993,0.00017485,85788.0,85787.0,0.705347]
[1765822976189,0.00017485,85788.0,85787.0,0.73410725]
[1765822977390,0.06017485,85788.0,85787.0,0.73410725]
[1765822977691,0.87978485,85788.0,85787.0,0.705347]
[1765822978783,0.87978485,85788.0,85787.0,0.704347]
[1765822979184,0.817768,85779.0,85778.0,0.0116581]
[1765822979391,1.34691,85779.0,85778.0,0.3447081]
[1765822979591,0.87961,85779.0,85778.0,0.7033481]
[1765822979896,0.18,85779.0,85778.0,0.7033481]
[1765822980489,0.87961,85779.0,85778.0,0.7033481]
[1765822980882,0.88161,85779.0,85778.0,0.7033481]
[1765822981281,0.88061,85779.0,85778.0,0.7033481]
[1765822981698,0.181,85779.0,85778.0,0.7033481]
[1765822982287,1.08204,85779.0,85778.0,0.0116581]
[1765822982598,0.69495,85772.0,85771.0,0.35967395]
[1765822982895,1.23575,85772.0,85771.0,0.35967395]
[1765822983482,1.23575,85772.0,85771.0,0.01183395]
[1765822984192,1.23675,85772.0,85771.0,0.01183395]
[1765822985295,1.23675,85772.0,85771.0,0.70248395]
[1765822985495,1.23775,85772.0,85771.0,0.35967395]
[1765822985698,1.23775,85772.0,85771.0,0.70248395]
[1765822985891,1.23775,85772.0,85771.0,0.01183395]
[1765822986201,1.23775,85772.0,85771.0,0.70248395]
[1765822986587,1.23775,85772.0,85771.0,0.00017485]
[1765822986890,1.59855,85772.0,85771.0,0.00017485]
[1765822987091,1.59855,85772.0,85771.0,0.69082485]
[1765822987290,0.3628,85772.0,85771.0,0.69082485]
[1765822987498,0.4428,85772.0,85771.0,0.69082485]
[1765822987798,0.3628,85772.0,85771.0,0.69082485]
[1765822987998,0.3618,85772.0,85771.0,0.69082485]
[1765822988200,0.002,85772.0,85771.0,0.69082485]
[1765822988389,0.002,85772.0,85771.0,1.05162485]
[1765822988589,1.05575,85786.0,85785.0,0.3594972]
[1765822988788,1.23575,85786.0,85785.0,0.3594972]
[1765822989389,1.23575,85786.0,85785.0,0.7023072]
[1765822989592,0.3608,85786.0,85785.0,0.7023072]
[1765822989892,0.00017485,85788.0,85787.0,0.69065]
[1765822990294,0.08017485,85788.0,85787.0,0.78258027]
[1765822990601,0.07017485,85788.0,85787.0,0.78258027]
[1765822990799,0.00017485,85788.0,85787.0,0.78258027]
[1765822991204,0.3608,85809.0,85808.0,0.7023041]
[1765822991395,0.82966,85809.0,85808.0,0.7023041]
[1765822991596,1.18575,85809.0,85808.0,0.7023041]
[1765822992403,1.18675,85809.0,85808.0,0.7023041]
[1765822993306,1.18575,85809.0,85808.0,0.7023041]
[1765822994200,1.18675,85809.0,85808.0,0.7023041]
[1765822994801,0.35609,85801.0,85800.0,0.69082485]
[1765822995103,0.35609,85801.0,85800.0,0.00017485]
[1765822995104,1.2674051,85801.0,85800.0,0.00017485]
[1765822995398,1.25575,85801.0,85800.0,0.69082485]
[1765822996388,1.25575,85801.0,85800.0,0.69182485]
[1765822997392,1.25575,85801.0,85800.0,0.69082485]
[1765822997595,1.25675,85801.0,85800.0,0.69182485]
[1765822997791,1.25675,85801.0,85800.0,0.00117485]
[1765822997995,1.25675,85801.0,85800.0,0.00017485]
[1765822998195,1.25675,85801.0,85800.0,0.00117485]
[1765822998401,1.25575,85801.0,85800.0,0.00217485]
[1765822998603,0.89966,85801.0,85800.0,0.69282485]
[1765822998806,1.05575,85808.0,85807.0,0.7023042]
[1765822999010,1.24575,85808.0,85807.0,0.7023042]
[1765823000003,0.5508,85808.0,85807.0,0.7023042]
[1765823000404,0.5518,85808.0,85807.0,0.7023042]
[1765823000702,0.5528,85808.0,85807.0,0.7023042]
[1765823000907,0.5518,85808.0,85807.0,0.7033042]
[1765823001098,1.24675,85808.0,85807.0,0.7033042]
[1765823001500,1.24575,85808.0,85807.0,0.7043042]
[1765823002004,0.52886,85808.0,85807.0,0.7043042]
[1765823002306,0.52886,85808.0,85807.0,0.7033042]
[1765823002605,0.52886,85808.0,85807.0,0.7043042]
[1765823002797,0.88495,85808.0,85807.0,0.7043042]
[1765823002996,0.88495,85808.0,85807.0,0.0136542]
[1765823003708,0.88495,85808.0,85807.0,0.0126542]
[1765823004101,0.88495,85808.0,85807.0,0.0116542]
[1765823004298,0.88595,85808.0,85807.0,0.0126542]
[1765823005110,0.88695,85808.0,85807.0,0.0116542]
[1765823005504,0.88695,85808.0,85807.0,0.3594942]
[1765823005710,0.003,85808.0,85807.0,0.7023042]
[1765823005905,0.083,85808.0,85807.0,1.0631042]
[1765823006114,0.003,85808.0,85807.0,1.0631042]
[1765823006309,0.00017485,85817.0,85816.0,0.702303]
[1765823006514,0.84512485,85817.0,85816.0,0.702303]
[1765823006716,0.84512485,85817.0,85816.0,0.011653]
[1765823007215,0.85677775,85817.0,85816.0,0.011653]
[1765823007601,0.84512485,85817.0,85816.0,0.03055896]
[1765823008301,0.84612485,85817.0,85816.0,0.03055896]
[1765823009612,0.84512485,85817.0,85816.0,0.03055896]
[1765823009803,0.84812485,85817.0,85816.0,0.03055896]
[1765823011205,0.84712485,85817.0,85816.0,0.03055896]
[1765823011403,0.84812485,85817.0,85816.0,0.01890596]
[1765823011603,0.70027,85801.0,85800.0,0.68163485]
[1765823011911,0.88027,85801.0,85800.0,0.70036826]
[1765823012113,0.88027,85801.0,85800.0,0.71202346]
[1765823012309,0.88027,85801.0,85800.0,0.38237346]
[1765823012511,0.88027,85801.0,85800.0,0.03056346]
[1765823013403,0.88027,85801.0,85800.0,0.36307346]
[1765823013604,0.88127,85801.0,85800.0,0.03056346]
[1765823014209,0.88127,85801.0,85800.0,0.36307346]
[1765823014405,0.88127,85801.0,85800.0,0.70651346]
[1765823014607,0.181,85801.0,85800.0,0.70651346]
[1765823014808,0.5361,85801.0,85800.0,0.70651346]
[1765823015005,0.3561,85801.0,85800.0,0.70651346]
[1765823015212,0.093,85801.0,85800.0,0.70651346]
[1765823015408,0.102,85801.0,85800.0,0.70651346]
[1765823015809,0.3608,85810.0,85809.0,0.687604]
[1765823016013,0.5208,85810.0,85809.0,0.687604]
[1765823016408,1.22908,85810.0,85809.0,0.687604]
[1765823018410,0.86828,85810.0,85809.0,0.687604]
[1765823018815,0.86928,85810.0,85809.0,0.687604]
[1765823019418,0.86828,85810.0,85809.0,0.687604]
[1765823020316,0.86828,85810.0,85809.0,0.688604]
[1765823021108,0.86828,85810.0,85809.0,0.71784042]
[1765823021308,0.71407485,85817.0,85816.0,0.687603]
[1765823021514,1.25925485,85817.0,85816.0,0.687603]
[1765823021824,1.25925485,85817.0,85816.0,0.011653]
[1765823022819,1.26025485,85817.0,85816.0,0.011653]
[1765823027430,1.26025485,85817.0,85816.0,0.687603]
[1765823027819,1.26025485,85817.0,85816.0,0.900383]
[1765823028528,1.25925485,85817.0,85816.0,0.900383]
[1765823028727,0.55197485,85817.0,85816.0,0.900383]
[1765823028926,0.40197485,85817.0,85816.0,1.0169107]
[1765823029230,0.00017485,85817.0,85816.0,1.0169107]
[1765823029432,0.03491889,85817.0,85816.0,1.0169107]
[1765823029730,0.00233053,85818.0,85817.0,0.67595]
[1765823029930,0.00233053,85818.0,85817.0,1.40767]
[1765823030425,0.00233053,85818.0,85817.0,1.5241977]
[1765823030820,0.19233053,85818.0,85817.0,1.5241977]
[1765823031220,0.00233053,85818.0,85817.0,1.5241977]
[1765823031422,0.15233053,85818.0,85817.0,1.5241977]
[1765823031622,0.15233053,85818.0,85817.0,1.5251977]
[1765823032120,0.15233053,85818.0,85817.0,1.5261977]
[1765823033330,0.17233053,85818.0,85817.0,1.5261977]
[1765823034533,0.17233053,85818.0,85817.0,0.7944777]
[1765823034831,1.06908,85825.0,85824.0,0.6876019]
[1765823035033,1.24908,85825.0,85824.0,0.0116519]
[1765823035231,0.70828,85818.0,85817.0,0.33451]
[1765823035432,1.23908,85818.0,85817.0,0.33451]
[1765823035633,1.23908,85818.0,85817.0,0.3461629]
[1765823035936,1.23908,85818.0,85817.0,0.0126529]
[1765823037031,1.23908,85818.0,85817.0,0.001]
[1765823037232,0.70828,85808.0,85807.0,0.0116542]
[1765823037537,1.23908,85808.0,85807.0,0.3441642]
[1765823038931,0.7199342,85807.0,85806.0,0.10445096]
[1765823039134,0.7199342,85807.0,85803.0,0.02916563]
[1765823039135,0.7199347,85804.0,85803.0,0.02916563]
[1765823039334,0.8899347,85804.0,85803.0,0.02916563]
[1765823039732,0.70828,85802.0,85801.0,0.011655]
[1765823039938,0.88828,85802.0,85801.0,0.011655]
[1765823040236,0.7199351,85801.0,85800.0,0.01894826]
[1765823040534,1.2607351,85801.0,85800.0,0.01894826]
[1765823040736,0.70828,85789.0,85788.0,1.7e-06]
[1765823041042,0.3531,85753.0,85752.0,1.16093917]
[1765823041235,0.32267991,85753.0,85752.0,1.19190393]
[1765823041429,0.67785991,85753.0,85752.0,1.19190393]
[1765823041839,0.67795178,85753.0,85752.0,1.28581181]
[1765823042257,0.67795178,85753.0,85752.0,1.01460264]
[1765823042541,1.03875178,85753.0,85752.0,1.01460264]
[1765823043543,1.03875178,85753.0,85752.0,1.01360264]
[1765823043741,1.03875178,85753.0,85752.0,1.01460264]
[1765823044537,0.19009187,85753.0,85752.0,1.01460264]
[1765823047447,0.52223187,85753.0,85752.0,1.01460264]
[1765823048246,0.19009187,85753.0,85752.0,1.01460264]
[1765823048446,9.187e-05,85753.0,85752.0,1.13121731]
[1765823048747,0.00017485,85761.0,85760.0,0.7078706]
[1765823048949,0.13017485,85761.0,85760.0,0.7078706]
[1765823049338,0.13017485,85761.0,85760.0,0.82448527]
[1765823049738,0.13023411,85761.0,85760.0,0.82448527]
[1765823050133,0.13123411,85761.0,85760.0,0.82448527]
[1765823050643,0.79979411,85761.0,85760.0,0.7078706]
[1765823050846,0.79979411,85761.0,85760.0,0.7088706]
[1765823051145,1.00083411,85761.0,85760.0,0.0126606]
[1765823051450,1.36163411,85761.0,85760.0,0.0126606]
[1765823052544,1.16059411,85761.0,85760.0,0.7088706]
[1765823052945,1.16159411,85761.0,85760.0,0.0126606]
[1765823053351,1.16159411,85761.0,85760.0,0.0116606]
[1765823054151,1.36263411,85761.0,85760.0,0.0116606]
[1765823054551,1.36194678,85761.0,85760.0,0.0116606]
[1765823055653,1.16090678,85761.0,85760.0,0.3565106]
[1765823056449,1.16090678,85761.0,85760.0,0.0116606]
[1765823056653,1.36194678,85761.0,85760.0,0.0116606]
[1765823056837,1.16090678,85761.0,85760.0,0.3565106]
[1765823057046,1.16090678,85761.0,85760.0,0.7078706]
[1765823058753,1.16090678,85761.0,85760.0,0.0116606]
[1765823058754,1.36194678,85761.0,85760.0,0.0116606]
[1765823059749,1.16090678,85761.0,85760.0,0.7078706]
[1765823061150,1.16090678,85761.0,85760.0,0.0116606]
[1765823061350,1.16090678,85761.0,85760.0,0.7078706]
[1765823063256,1.36194678,85761.0,85760.0,0.0116606]
[1765823064658,1.16090678,85761.0,85760.0,0.7078706]
[1765823064863,1.17256728,85761.0,85760.0,0.0116606]
[1765823065457,1.16090678,85761.0,85760.0,0.0116606]
[1765823065658,1.16090678,85761.0,85760.0,0.7078706]
[1765823065852,1.03141926,85761.0,85760.0,0.7078706]
[1765823066061,1.93341926,85761.0,85760.0,0.9105006]
[1765823066452,0.86399926,85761.0,85760.0,0.9105006]
[1765823066655,0.53185926,85761.0,85760.0,0.9105006]
[1765823066854,0.00017485,85769.0,85768.0,0.9104995]
[1765823067054,0.17017485,85769.0,85768.0,0.9104995]
[1765823068260,0.00117485,85769.0,85768.0,0.9104995]
[1765823068458,0.00317485,85769.0,85768.0,0.9104995]
[1765823068760,0.5408,85782.0,85781.0,0.7078678]
[1765823069064,0.2346314,85782.0,85781.0,0.7078678]
[1765823069462,0.9041914,85782.0,85781.0,0.7078678]
[1765823069763,0.9041914,85782.0,85781.0,0.79928234]
[1765823070161,0.9041914,85782.0,85781.0,0.7078678]
[1765823072364,0.9041914,85782.0,85781.0,0.80330107]
[1765823073164,0.9041914,85782.0,85781.0,0.83304529]
[1765823074258,1.2649914,85782.0,85781.0,0.83304529]
[1765823074653,1.2649914,85782.0,85781.0,0.13683529]
[1765823074856,1.2649914,85782.0,85781.0,0.0116578]
[1765823075257,0.9275714,85782.0,85781.0,0.6854178]
[1765823075469,1.2663514,85782.0,85781.0,0.6854178]
[1765823077164,1.23172,85782.0,85781.0,0.6854178]
[1765823077361,0.3608,85782.0,85781.0,0.7785107]
[1765823077562,0.34308485,85790.0,85789.0,0.6854167]
[1765823077867,0.57720177,85790.0,85789.0,0.6854167]
[1765823078369,0.20017485,85790.0,85789.0,0.6854167]
[1765823078754,0.20117485,85790.0,85789.0,0.6854167]
[1765823079569,0.20117485,85790.0,85789.0,0.6864167]
[1765823079964,0.88286485,85790.0,85789.0,0.6864167]
[1765823080369,0.88286485,85790.0,85789.0,0.001]
[1765823080668,0.91561188,85790.0,85789.0,0.002]
[1765823080864,1.64745188,85790.0,85789.0,0.002]
[1765823081672,0.68169,85785.0,85784.0,0.0116573]
[1765823081875,0.68169,85775.0,85764.0,0.0233202]
[1765823082062,0.86169,85775.0,85765.0,0.16316856]
[1765823082263,0.86169,85775.0,85772.0,0.02910041]
[1765823082465,0.86169,85775.0,85773.0,0.09212011]
[1765823082859,0.86169,85775.0,85773.0,0.00017485]
[1765823083876,0.68169,85774.0,85773.0,0.00017485]
[1765823084074,0.86169,85774.0,85773.0,0.00017485]
[1765823084965,0.86169,85774.0,85773.0,0.00617485]
[1765823085177,0.68169,85765.0,85764.0,0.01166]
[1765823085472,1.24249,85765.0,85764.0,0.68542]
[1765823085677,1.24249,85765.0,85764.0,0.01166]
[1765823086577,1.24249,85765.0,85764.0,0.01266]
[1765823087476,1.24249,85765.0,85764.0,0.01366]
[1765823088876,1.24249,85765.0,85764.0,0.68742]
[1765823089468,1.24249,85765.0,85764.0,0.01366]
[1765823090379,1.97433,85765.0,85764.0,0.01366]
[1765823090770,1.97433,85765.0,85764.0,0.002]
[1765823091070,0.68169,85757.0,85756.0,0.00017485]
[1765823091264,1.22249,85757.0,85756.0,0.00017485]
[1765823092286,1.22249,85757.0,85756.0,0.00217485]
[1765823093172,1.22249,85757.0,85756.0,0.00417485]
[1765823093678,1.22249,85757.0,85752.0,0.01930306]
[1765823093679,0.6933516,85753.0,85751.0,0.0116618]
[1765823093974,0.88926,85752.0,85751.0,0.0116618]
[1765823094179,1.08926,85752.0,85751.0,0.0116618]
[1765823094382,1.82114,85752.0,85751.0,0.0116618]
[1765823094579,1.82114,85752.0,85751.0,0.03030276]
[1765823094788,1.82114,85752.0,85751.0,0.03630276]
[1765823096673,1.82114,85752.0,85751.0,0.03530276]
[1765823098584,1.82114,85752.0,85751.0,0.02364096]
[1765823099087,1.82114,85752.0,85750.0,9.6e-07]
[1765823099088,0.6933519,85751.0,85750.0,9.6e-07]
[1765823099291,0.8814128,85744.0,85743.0,0.00017485]
[1765823099581,2.1741328,85744.0,85743.0,0.00017485]
[1765823099975,2.1741328,85744.0,85743.0,0.01925679]
[1765823100178,2.1741328,85744.0,85743.0,0.00017485]
[1765823100379,2.1741328,85744.0,85743.0,0.02268155]
[1765823100578,2.1741328,85744.0,85743.0,0.00317485]
[1765823101182,2.1741328,85744.0,85743.0,0.00717485]
[1765823102088,2.1741328,85744.0,85743.0,0.02608727]
[1765823104182,2.1741328,85744.0,85743.0,0.02208727]
[1765823104587,2.1751328,85744.0,85743.0,0.01908727]
[1765823106286,2.1751328,85744.0,85743.0,0.01891242]
[1765823106492,0.6731243,85733.0,85732.0,0.01002637]
[1765823106681,1.9559243,85733.0,85732.0,0.01002637]
[1765823106885,1.9559243,85733.0,85732.0,0.02892119]
[1765823107784,1.9559243,85733.0,85732.0,0.04158559]
[1765823107982,1.9559243,85733.0,85732.0,0.02992119]